[Event "44th Chess Olympiad Women 2022"]
[Site "Chennai"]
[Date "2022.07.30"]
[Round "2.1"]
[White "Koneru, Humpy"]
[Black "Zuriel, Marisa"]
[Result "1/2-1/2"]
[ECO "A57"]
[WhiteElo "2586"]
[BlackElo "2174"]
[Annotator "ChessBase"]
[PlyCount "87"]
[EventDate "2022.07.29"]
[EventType "team-tourn"]
[EventCountry "IND"]
[SourceTitle "playchess.com"]
[Source "ChessBase"]
[SourceQuality "1"]
[WhiteTeam "India"]
[BlackTeam "Argentina"]
[WhiteTeamCountry "IND"]
[BlackTeamCountry "ARG"]
[TimeControl "40/5400+30:1800+30"]

1. d4 {[%emt 0:00:03]} Nf6 {[%emt 0:00:12]} 2. c4 {[%emt 0:00:12]} c5 {[%emt 0:00:13]} 3. d5 {[%emt 0:00:13]} b5 {[%emt 0:00:14]} 4. Qc2 {[%emt 0:00:18]} b4 {[%emt 0:00:42]} 5. e4 {[%emt 0:00:35]} d6 {[%emt 0:00:31]} 6. Bd3 {[%emt 0:00:42]} g6 {[%emt 0:00:46]} 7. Ne2 {[%emt 0:01:05]} Bg7 {[%emt 0:01:03]} 8. O-O {[%emt 0:01:01]} O-O {[%emt 0:00:39]} 9. Nd2 {[%emt 0:04:21]} Nbd7 {[%emt 0:05:29]} 10. f4 {[%emt 0:02:07]} a5 {[%emt 0:05:51]} 11. a4 {[%emt 0:20:09]} e6 {[%emt 0:10:38]} 12. Nf3 {[%emt 0:09:31]} exd5 {[%emt 0:08:21]} 13. exd5 {[%emt 0:00:18]} Re8 {[%emt 0:00:26]} 14. h3 {[%emt 0:13:34]} Rb8 {[%emt 0:07:28]} 15. Bd2 {[%emt 0:03:18]} Ba6 {[%emt 0:24:06]} 16. Rae1 {[%emt 0:03:48]} Qb6 {[%emt 0:08:50]} 17. Kh2 {[%emt 0:04:24]} Re7 {[%emt 0:00:34]} 18. Ng3 {[%emt 0:04:10]} Rbe8 {[%emt 0:00:32]} 19. Rxe7 {[%emt 0:01:00]} Rxe7 {[%emt 0:00:06]} 20. b3 {[%emt 0:03:04]} Qd8 {[%emt 0:04:27]} 21. f5 {[%emt 0:01:24]} Qe8 {[%emt 0:12:59]} 22. Bg5 {[%emt 0:08:10]} Bc8 {[%emt 0:00:32]} 23. Qd2 {[%emt 0:02:33]} Qf8 {[%emt 0:03:22]} 24. Bf4 {[%emt 0:05:26]} Re8 {[%emt 0:01:29]} 25. Kh1 {[%emt 0:03:05]} Qe7 {[%emt 0:00:43]} 26. Qc2 {[%emt 0:01:54]} Qf8 {[%emt 0:01:15]} 27. Qd2 {[%emt 0:02:23]} Qe7 {[%emt 0:00:18]} 28. Bc2 {[%emt 0:00:13]} Qf8 {[%emt 0:00:03]} 29. Ng5 {[%emt 0:02:25]} Ne5 {[%emt 0:01:09]} 30. fxg6 {[%emt 0:01:55]} hxg6 {[%emt 0:00:25]} 31. N3e4 {[%emt 0:00:43]} Nxe4 {[%emt 0:00:28]} 32. Bxe4 {[%emt 0:00:08]} f5 {[%emt 0:01:00]} 33. Bc2 {[%emt 0:00:29]} Qe7 {[%emt 0:00:57]} 34. Qf2 {[%emt 0:01:26]} Bf6 {[%emt 0:00:19]} 35. Qh4 {[%emt 0:01:07]} Qg7 {[%emt 0:00:12]} 36. Qg3 {[%emt 0:00:13]} Bd7 {[%emt 0:01:10]} 37. Bd1 {[%emt 0:00:27]} Bc8 {[%emt 0:00:25]} 38. Bf3 {[%emt 0:00:22]} Bd7 {[%emt 0:00:34]} 39. Re1 {[%emt 0:00:29]} Re7 {[%emt 0:00:52]} 40. Ne6 {[%emt 0:00:49]} Bxe6 {[%emt 0:00:27]} 41. dxe6 {[%emt 0:30:05]} g5 {[%emt 0:04:52]} 42. Bxe5 {[%emt 0:00:00]} Bxe5 {[%emt 0:10:59]} 43. Qf2 {[%emt 0:00:00]} g4 {[%emt 0:08:21]} 44. Bd5 {[%emt 0:00:00]} 1/2-1/2

[Event "44th Chess Olympiad Women 2022"]
[Site "Chennai"]
[Date "2022.07.30"]
[Round "2.1"]
[White "Tania, Sachdev"]
[Black "Borda Rodas, Anapaola S."]
[Result "1-0"]
[ECO "D85"]
[WhiteElo "2399"]
[BlackElo "2183"]
[Annotator "TA"]
[PlyCount "71"]
[EventDate "2022.07.29"]
[EventType "team-tourn"]
[EventCountry "IND"]
[SourceTitle "playchess.com"]
[Source "ChessBase"]
[SourceQuality "1"]
[WhiteTeam "India"]
[BlackTeam "Argentina"]
[WhiteTeamCountry "IND"]
[BlackTeamCountry "ARG"]
[TimeControl "40/5400+30:1800+30"]

{[%evp 14,71,25,14,23,20,13,0,0,0,0,0,0,0,19,32,60,52,60,46,72,-23,45,49,42,9,9,8,2,6,9,9,66,32,98,106,102,118,103,108,110,120,294,209,398,309,378,195,263,281,260,0,0,-48,162,180,29956,6570,5285,2437]} 1. d4 {[%emt 0:00:36]} Nf6 {[%emt 0:00:26]} 2. c4 {[%emt 0:00:05]} g6 {[%emt 0:00:10]} 3. Nc3 {[%emt 0:00:04]} d5 {[%emt 0:00:15]} 4. cxd5 {[%emt 0:00:17]} Nxd5 {[%emt 0:00:09]} 5. Bd2 {[%emt 0:00:06]} Bg7 {[%emt 0:01:11]} 6. e4 {[%emt 0:00:09]} Nxc3 {[%emt 0:00:28]} 7. Bxc3 {[%emt 0:00:10]} O-O {[%emt 0:00:19]} 8. Qd2 {[%emt 0:03:44]} c5 {[%emt 0:01:50][%cal Rc5d4] D85: Exchange Grünfeld: Unusual White 7th moves and lines with 7 Nf3.} 9. d5 {[%emt 0:00:12]} e6 {[%emt 0:00:54]} 10. Bxg7 {[%emt 0:26:24]} Kxg7 {[%emt 0:02:23] The position is equal.} 11. Bc4 {[%emt 0:00:15]} Nd7 {[%emt 0:17:21]} 12. Ne2 {[%emt 0:23:12]} Nb6 {[%emt 0:13:36]} 13. b3 {[%emt 0:08:16] [#]} Qf6 $146 {[%emt 0:09:30]} (13... Qh4 $5 {[%cal Rh4e4]}) ({Predecessor:} 13... Qh4 14. Ng3 exd5 15. Bxd5 Rd8 16. O-O Nxd5 17. exd5 Qd4 18. Nh5+ Kh8 19. Qg5 Rxd5 {½-½ (26) Susla,V (2315)-Husemann,A (2248) LSS email 2015}) 14. O-O {[%emt 0:01:45]} Rd8 {[%emt 0:04:16]} 15. Rad1 {[%emt 0:05:21]} exd5 {[%emt 0:03:03]} 16. exd5 {[%emt 0:00:22]} Bf5 {[%emt 0:02:00]} 17. Qa5 {[%emt 0:04:53]} (17. f3 $16) 17... Nd7 {[%emt 0:15:18]} (17... Bc2 $11 18. Rc1 Be4) 18. Rfe1 {[%emt 0:03:04]} a6 {[%emt 0:06:03]} 19. a4 {[%emt 0:03:43] Against b5} b5 {[%emt 0:03:24]} 20. axb5 {[%emt 0:02:22]} axb5 {[%emt 0:00:04]} 21. Qxb5 {[%emt 0:00:02]} Rab8 {[%emt 0:01:26]} 22. Qa4 {[%emt 0:03:31]} Bc2 {[%emt 0:05:33]} (22... Ne5 $1 $11) 23. Rc1 {[%emt 0:04:32]} (23. Rd2 $5 {[%cal Rd2c2]} Nb6 24. Qa3 Nxc4 25. bxc4 $16) 23... Qb2 {[%emt 0:00:31]} ({Black should try} 23... Ra8 $14 24. Qc6 (24. Rxc2 Rxa4 25. bxa4 Ne5 $17) 24... Be4) 24. Qa5 $1 $16 {[%emt 0:00:42]} Ne5 {[%emt 0:10:00]} 25. Qd2 $36 {[%emt 0:01:40][%mdl 2048] Keeping Black busy.} Nxc4 {[%emt 0:00:55]} 26. bxc4 {[%emt 0:00:15]} (26. Qxc2 $6 Qxc2 27. Rxc2 Na5 $11) 26... Bf5 {[%emt 0:00:18]} 27. Qf4 {[%emt 0:02:44]} Rb4 $2 {[%emt 0:01:12]} (27... h6 $16 28. g4 Bc2) 28. Ng3 {[%emt 0:00:38]} Bd3 {[%emt 0:00:49] [#]} (28... Qf6 29. h3 Rbb8) 29. Nh5+ $1 {[%emt 0:02:59][%mdl 512]} Kg8 {[%emt 0:00:52]} (29... Kh8 30. Qc7) 30. Qh4 {[%emt 0:00:10]} (30. Qe3 $142 {[%cal Oe3e8] White wants to mate with Qe8+!} h6 31. Qxd3 gxh5 32. Qe3) 30... Rf8 {[%emt 0:00:36]} (30... Rbb8 {keeps fighting.}) 31. Nf6+ $18 {[%emt 0:01:02]} Kg7 {[%emt 0:00:07]} 32. Nd7 {[%emt 0:01:53]} (32. Nxh7 Rh8 33. Qg3 Rxc4 $11) (32. Qxh7+ Kxf6 33. Qh6 Rbb8 $17) (32. Ng4 $1 $18) 32... Re8 $1 $11 {[%emt 0:00:31][%cal Ob4c4] Strongly threatening ...Rxc4!} 33. h3 {[%emt 0:00:56] [#]} ({Not} 33. Nxc5 $2 Rxc4 $1 {[%mdl 512]} 34. Qg5 (34. Nxd3 $2 Rxc1 35. g3 Rexe1+ $19) 34... Rxc5 $1 $19 {[%mdl 512]}) (33. f3 $11 Rxc4 34. Rxc4 Rxe1+ 35. Qxe1 Bxc4 36. Qe3) 33... Rxe1+ $2 {[%emt 0:00:31]} (33... Rxc4 $1 $15 {stays ahead.} 34. Rxc4 (34. Qg5 $2 h6 $19) 34... Rxe1+ 35. Kh2 h6 36. Rxc5 Rf1) 34. Rxe1 $18 {[%emt 0:00:01]} Rxc4 $2 {[%emt 0:00:17]} (34... Bf5 $18) 35. Qe7 {[%emt 0:00:29][%csl Gd7][%cal Re7f8]} h5 {[%emt 0:01:11]} 36. Ne5 {[%emt 0:00:50] Weighted Error Value: White=0.40/Black=0.67} 1-0

[Event "44th Chess Olympiad Women 2022"]
[Site "Chennai"]
[Date "2022.07.30"]
[Round "2.3"]
[White "Dzagnidze, Nana"]
[Black "Martynkova, Olena"]
[Result "1-0"]
[ECO "E66"]
[WhiteElo "2531"]
[BlackElo "2213"]
[Annotator "TA"]
[PlyCount "71"]
[EventDate "2022.07.29"]
[EventType "team-tourn"]
[EventCountry "IND"]
[SourceTitle "playchess.com"]
[Source "ChessBase"]
[SourceQuality "1"]
[WhiteTeam "Georgia"]
[BlackTeam "Lithuania"]
[WhiteTeamCountry "GEO"]
[BlackTeamCountry "LTU"]
[TimeControl "40/5400+30:1800+30"]

{[%evp 20,71,0,7,22,27,25,24,55,57,73,61,69,76,65,71,76,72,100,103,113,112,110,112,104,104,105,108,154,135,154,144,122,101,104,109,135,79,95,97,210,184,277,269,879,866,6298,6095,29980,2202,29990,29991,29991,1200]} 1. d4 {[%emt 0:00:04]} Nf6 {[%emt 0:00:11]} 2. c4 {[%emt 0:00:08]} g6 {[%emt 0:00:12]} 3. Nf3 {[%emt 0:00:11]} Bg7 {[%emt 0:00:19]} 4. g3 {[%emt 0:00:20]} O-O {[%emt 0:00:24]} 5. Bg2 {[%emt 0:00:09]} d6 {[%emt 0:00:19]} 6. Nc3 {[%emt 0:00:19]} c5 {[%emt 0:02:03]} 7. O-O {[%emt 0:02:39]} Nc6 {[%emt 0:00:49]} 8. d5 {[%emt 0:11:50]} Na5 {[%emt 0:00:36]} 9. Nd2 {[%emt 0:00:13]} e6 {[%emt 0:02:27]} 10. Qc2 {[%emt 0:03:27]} exd5 {[%emt 0:01:23]} 11. cxd5 {[%emt 0:00:29]} Bd7 {[%emt 0:02:26] E66: King's Indian: Fianchetto: 6...c5 7 0-0 Nc6 8 d5.} 12. b3 {[%emt 0:01:16]} b5 {[%emt 0:04:11]} 13. Bb2 {[%emt 0:00:23]} b4 {[%emt 0:01:44] Hoping for ...c4. White has an edge.} 14. Nce4 {[%emt 0:11:51]} Bb5 {[%emt 0:18:56] [#]} 15. Rfe1 $146 {[%emt 0:02:28]} ({Predecessor:} 15. Nxf6+ Bxf6 16. a3 Nb7 17. Rfe1 a5 18. e4 Bd3 19. Bxf6 Bxc2 20. Bxd8 Rfxd8 21. Rac1 {1-0 (32) Banusz,T (2611)-Popiol,M (2118) Biel 2022}) 15... Rc8 {[%emt 0:09:42]} 16. Nxf6+ {[%emt 0:21:17]} Bxf6 {[%emt 0:00:07]} 17. Bh3 {[%emt 0:00:25]} Rc7 {[%emt 0:05:49]} 18. a3 {[%emt 0:00:14] axb4 is the strong threat.} Bxb2 {[%emt 0:23:00]} 19. Qxb2 {[%emt 0:00:03]} Nb7 {[%emt 0:05:26]} 20. axb4 {[%emt 0:03:57]} cxb4 {[%emt 0:00:09]} 21. Rxa7 {[%emt 0:00:07] White is more active.} Nc5 {[%emt 0:00:14]} 22. Rxc7 {[%emt 0:00:11]} Qxc7 {[%emt 0:00:04]} 23. Qd4 {[%emt 0:00:35]} Rb8 {[%emt 0:03:01]} (23... Qe7 $142) 24. Bf1 $16 {[%emt 0:05:33]} (24. Qxb4 $6 Bd7 25. Qh4 Qa5 $14) 24... Qe7 {[%emt 0:04:15]} 25. Ra1 {[%emt 0:07:59]} (25. Qxb4 Nd3 26. exd3 Qxe1 27. Qxd6 Re8 $15) 25... Re8 {[%emt 0:02:34]} 26. e3 $36 {[%emt 0:02:47][%mdl 2048] White is in control.} (26. Qxb4 Bxe2 27. Qb6 Nd3 $14) 26... Bxf1 {[%emt 0:00:16]} 27. Kxf1 {[%emt 0:00:06]} Qb7 {[%emt 0:00:48]} 28. Rc1 {[%emt 0:07:13]} (28. Kg2 $142) 28... Qa6+ {[%emt 0:01:44]} 29. Rc4 {[%emt 0:01:53]} Rb8 {[%emt 0:04:56]} (29... Nd7 $16 {is a better defense.}) 30. Kg2 $18 {[%emt 0:03:00]} Qa3 {[%emt 0:01:05]} (30... Re8 $142 31. g4 (31. Rxb4 Qe2 $11) 31... Qa5) 31. Qf6 {[%emt 0:01:37]} Nxb3 $2 {[%emt 0:02:38]} (31... Rf8 32. Ne4 Nxe4 33. Rxe4 Qa5 34. Qxd6 Rd8) 32. Qxd6 {[%emt 0:00:46]} Re8 {[%emt 0:00:36]} 33. Ne4 {[%emt 0:00:53] Nf6+ would kill now.} Ra8 {[%emt 0:01:33]} 34. Rxb4 {[%emt 0:00:57]} (34. Nf6+ $142 Kg7 35. Rc7 Qa6 36. Ne8+ $1 {[%mdl 512]} Rxe8 37. Qxa6 Nd2 38. Qa7 Rf8 39. Qd4+ Kh6 40. Qxd2) 34... Rf8 {[%emt 0:01:02]} 35. Nf6+ {[%emt 0:05:13]} Kg7 {[%emt 0:00:04] [#]} 36. Ng4 {[%emt 0:00:13] Weighted Error Value: White=0.06 (flawless) /Black=0.86} (36. Qe5 $142 $1 Qa1 37. Rd4 Rc8 38. Ne8+ Kf8 {[#]} 39. d6 $1 Qh1+ 40. Kxh1 Rc1+ 41. Kg2 Rg1+ 42. Kxg1 f5 43. Qg7+ Kxe8 44. Qe7#) 1-0

[Event "44th Chess Olympiad Women 2022"]
[Site "Chennai"]
[Date "2022.07.30"]
[Round "2.4"]
[White "Radikovic, Anamarija"]
[Black "Malicka, Maria"]
[Result "0-1"]
[ECO "C03"]
[WhiteElo "2099"]
[BlackElo "2393"]
[Annotator "TA"]
[PlyCount "48"]
[EventDate "2022.07.29"]
[EventType "team-tourn"]
[EventCountry "IND"]
[SourceTitle "playchess.com"]
[Source "ChessBase"]
[SourceQuality "1"]
[WhiteTeam "Croatia"]
[BlackTeam "Poland"]
[WhiteTeamCountry "CRO"]
[BlackTeamCountry "POL"]
[TimeControl "40/5400+30:1800+30"]

{[%evp 9,48,19,18,20,22,-25,0,0,-11,-11,0,0,0,0,0,-34,-21,-49,-61,-296,-194,-538,-550,-553,-545,-543,-546,-542,-540,-536,-524,-542,-535,-654,-639,-686,-686,-712,-702,-675,-687]} 1. e4 {[%emt 0:00:30] ChessBase II} e6 {[%emt 0:00:30]} 2. d4 {[%emt 0:00:30]} d5 {[%emt 0:00:30]} 3. Nd2 {[%emt 0:00:30]} Be7 {[%emt 0:00:30]} 4. e5 {[%emt 0:00:30]} c5 {[%emt 0:00:30]} 5. c3 {[%emt 0:00:30]} cxd4 {[%emt 0:00:30]} 6. cxd4 {[%emt 0:00:30] C03: French Tarrasch: Unusual Black 3rd moves.} Qb6 {[%emt 0:00:30] 6...Qb6 scores better than 6...Nc6.} 7. Qg4 {[%emt 0:00:30]} (7. Ngf3 $142) 7... Kf8 {[%emt 0:00:30] [#]} 8. Bd3 $146 {[%emt 0:00:30] The position is equal.} ({Predecessor:} 8. Ngf3 Bd7 9. Qf4 Nh6 10. Bd3 Bb5 11. Bxb5 Qxb5 12. Qe3 Nc6 13. Qe2 Qxe2+ 14. Kxe2 {1-0 (48) Stany,G (2494)-Hoolt,S (2392) Cappelle la Grande 2018 EXT 2019 [ChessBase II]}) 8... h5 {[%emt 0:00:30]} 9. Qf4 {[%emt 0:00:30]} g5 {[%emt 0:00:30]} 10. Qe3 {[%emt 0:00:30]} Nc6 {[%emt 0:00:30][%cal Bb8c6,Bc6d4,Bd4e2][%mdl 32]} 11. Ne2 {[%emt 0:00:30]} Nh6 {[%emt 0:00:30]} 12. Nb3 {[%emt 0:00:30]} a5 {[%emt 0:00:30][%cal Ba7a5,Ba5a4][%mdl 32]} 13. f4 {[%emt 0:00:30]} a4 $36 {[%emt 0:00:30][%mdl 2048] Threatens to win with ...gxf4. White is under pressure.} 14. Nc5 $2 {[%emt 0:00:30] This move loses the game for White.} (14. Nd2 $15) 14... Ng4 {[%emt 0:00:30]} 15. Qg1 {[%emt 0:00:30] [#]} (15. Qg3) 15... Nxd4 $1 $19 {[%emt 0:00:30][%mdl 512] Black is clearly winning.} 16. b4 {[%emt 0:00:30]} Qxb4+ {[%emt 0:00:30]} 17. Bd2 {[%emt 0:00:30] [#]} Nxe2 $1 {[%emt 0:00:30]} 18. Bxb4 {[%emt 0:00:30]} Nxg1 {[%emt 0:00:30]} 19. Bb5 {[%emt 0:00:30] [#]} gxf4 $1 {[%emt 0:00:30]} 20. Rxg1 {[%emt 0:00:30]} Nxe5 {[%emt 0:00:30] Strongly threatening ...b6.} 21. Rf1 {[%emt 0:00:30]} Rg8 {[%emt 0:00:30][%cal Bh8g8,Bg8g2,Bg2h2,Bh2c2][%mdl 32]} 22. Rxf4 {[%emt 0:00:30]} Rxg2 {[%emt 0:00:30]} 23. Kf1 {[%emt 0:00:30]} Rxh2 {[%emt 0:00:30] ...Rh1+ is the strong threat.} 24. Kg1 {[%emt 0:00:30] Prevents Rh1+.} Rc2 {[%emt 0:00:30] Weighted Error Value: White=0.61/Black=0.07 (flawless)} 0-1

[Event "44th Chess Olympiad Women 2022"]
[Site "Chennai"]
[Date "2022.07.30"]
[Round "2.5"]
[White "Savina, Anastasia"]
[Black "Moaataz, Ayah"]
[Result "1-0"]
[ECO "D46"]
[WhiteElo "2377"]
[BlackElo "2119"]
[Annotator "TA"]
[PlyCount "73"]
[EventDate "2022.07.29"]
[EventType "team-tourn"]
[EventCountry "IND"]
[SourceTitle "playchess.com"]
[Source "ChessBase"]
[SourceQuality "1"]
[WhiteTeam "France"]
[BlackTeam "Egypt"]
[WhiteTeamCountry "FRA"]
[BlackTeamCountry "EGY"]
[TimeControl "40/5400+30:1800+30"]

{[%evp 19,73,12,33,-24,39,49,34,32,134,102,168,168,147,192,227,233,226,209,222,233,212,209,192,230,222,171,264,268,278,270,268,267,272,266,373,351,375,362,386,389,407,405,391,392,1121,1075,1235,1209,1500,1460,1349,1065,1056,1052,29988,29989]} 1. d4 {[%emt 0:00:07]} d5 {[%emt 0:00:04]} 2. c4 {[%emt 0:00:11]} c6 {[%emt 0:00:05]} 3. Nc3 {[%emt 0:00:40]} Nf6 {[%emt 0:00:16]} 4. Nf3 {[%emt 0:00:35]} e6 {[%emt 0:00:26][%cal Be7e6,Be6e5][%mdl 32]} 5. e3 {[%emt 0:00:53]} Nbd7 {[%emt 0:00:18]} 6. Qc2 {[%emt 0:01:47]} Bd6 {[%emt 0:00:42]} 7. Bd3 {[%emt 0:01:10]} dxc4 {[%emt 0:03:54]} 8. Bxc4 {[%emt 0:03:20]} O-O {[%emt 0:00:13]} 9. O-O {[%emt 0:00:12]} e5 {[%emt 0:00:47]} 10. h3 {[%emt 0:02:02]} h6 {[%emt 0:10:43]} 11. Bb3 {[%emt 0:04:53] [#] D46: Semi-Slav: 5 e3 Nbd7 6 Bd3, Black avoids the Meran.} ({White should play} 11. Rd1 $14 exd4 12. Nxd4 (12. Rxd4 Qe7 $11)) 11... Kh8 $146 {[%emt 0:03:31]} (11... Re8 $1 $11) ({Predecessor:} 11... Re8 12. dxe5 Nxe5 13. Nd4 c5 14. Nf5 Bxf5 15. Qxf5 Qc8 16. Qxc8 Raxc8 17. Rd1 Bc7 18. f4 Nc6 {½-½ (51) Wang,H (2712)-Lu,S (2599) Baku 2015}) 12. Bd2 $14 {[%emt 0:14:13]} exd4 {[%emt 0:03:44]} 13. exd4 {[%emt 0:00:45] White is slightly better.} Nh5 {[%emt 0:00:24]} (13... Nb6 $14) 14. Rae1 {[%emt 0:15:36] White is more active.} Bf4 {[%emt 0:05:18]} (14... Nf4 $16 {might work better.}) 15. g4 $18 {[%emt 0:11:20][%cal Bg2g4,Bg4h5][%mdl 32]} Bxd2 {[%emt 0:09:39]} 16. Qxd2 {[%emt 0:00:10]} Qf6 {[%emt 0:02:30] [#]} 17. Bd1 {[%emt 0:12:54]} ({And not} 17. gxh5 Qxf3 18. Re3 Qxh5 $15) 17... Nb6 {[%emt 0:27:27]} (17... Nf4 $2 18. Ne4 Nxh3+ 19. Kg2) 18. Ne4 {[%emt 0:06:54]} (18. gxh5 Bxh3 19. Qd3 Nd7) 18... Qf4 {[%emt 0:02:03]} 19. gxh5 {[%emt 0:03:25]} Qxd2 {[%emt 0:00:06]} 20. Nexd2 {[%emt 0:01:20] Kh2 is the strong threat.} ({Don't do} 20. Nfxd2 $6 Bxh3 21. Nc5 Rab8 $16) 20... Bxh3 {[%emt 0:00:08]} 21. Re7 {[%emt 0:00:45]} Bxf1 {[%emt 0:00:09]} 22. Kxf1 {[%emt 0:00:19]} Rad8 {[%emt 0:07:35]} (22... Rab8 $142 23. Bb3 Nd5 24. Bxd5 cxd5) 23. Rxb7 {[%emt 0:04:13]} Rd7 {[%emt 0:01:03]} 24. Rxd7 {[%emt 0:00:14]} Nxd7 {[%emt 0:00:01]} 25. Ba4 {[%emt 0:01:56]} Rc8 {[%emt 0:00:25]} 26. Ne4 {[%emt 0:01:12]} ({Don't play} 26. d5 $6 Nb6 $16) 26... Nb6 {[%emt 0:05:50]} (26... Kg8 $142 27. Nd6 Rc7) 27. Nd6 {[%emt 0:00:28][%csl LRc8,LRf7]} Rc7 {[%emt 0:00:38]} 28. Bb3 {[%emt 0:00:22]} Nd5 {[%emt 0:02:10]} 29. Ne5 {[%emt 0:00:57]} Kh7 {[%emt 0:03:55]} 30. Ndxf7 {[%emt 0:02:31]} Nf4 {[%emt 0:00:40]} 31. Nd8 {[%emt 0:03:01]} c5 {[%emt 0:04:29]} (31... Nxh5 32. Ndxc6 Nf6) 32. d5 {[%emt 0:00:24][%cal Bd4d5,Bd5d6][%mdl 32]} Re7 {[%emt 0:00:32]} 33. Ndc6 {[%emt 0:01:02]} Rb7 {[%emt 0:03:14]} 34. d6 {[%emt 0:00:26]} c4 {[%emt 0:01:00]} 35. Bc2+ {[%emt 0:02:09]} Kg8 {[%emt 0:01:03]} 36. d7 {[%emt 0:01:00][%cal Rd7d8] [#]} Ne6 {[%emt 0:00:27]} 37. Bf5 {[%emt 0:00:16] Black got outplayed after the opening.  Weighted Error Value: White=0.10 (very precise) /Black=0.58} 1-0

[Event "44th Chess Olympiad Women 2022"]
[Site "Chennai"]
[Date "2022.07.30"]
[Round "2.5"]
[White "Mona, Khaled"]
[Black "Guichard, Pauline"]
[Result "0-1"]
[ECO "D24"]
[WhiteElo "2127"]
[BlackElo "2379"]
[Annotator "TA"]
[PlyCount "74"]
[EventDate "2022.07.29"]
[EventType "team-tourn"]
[EventCountry "IND"]
[SourceTitle "playchess.com"]
[Source "ChessBase"]
[SourceQuality "1"]
[WhiteTeam "Egypt"]
[BlackTeam "France"]
[WhiteTeamCountry "EGY"]
[BlackTeamCountry "FRA"]
[TimeControl "40/5400+30:1800+30"]

{[%evp 9,74,31,45,-33,-36,-80,-39,-27,-35,-29,0,-30,-18,-35,-26,-52,-32,-120,-128,-116,-128,-135,-141,-170,-164,-343,-342,-317,-356,-326,-307,-325,-309,-300,-237,-242,-250,-367,-330,-533,-153,-150,-179,-172,-104,-124,-127,-262,-267,-251,-244,-422,-426,-438,-437,-1233,-453,-29983,-29984,-29984,-29985,-29985,-29986,-29984,-12839,-12837,-12838]} 1. d4 {[%emt 0:00:59]} Nf6 {[%emt 0:00:10]} 2. c4 {[%emt 0:00:05]} e6 {[%emt 0:00:19]} 3. Nf3 {[%emt 0:00:19]} d5 {[%emt 0:00:17]} 4. Nc3 {[%emt 0:00:08]} dxc4 {[%emt 0:00:19]} 5. e4 {[%emt 0:00:06]} b5 {[%emt 0:00:17][%cal Bb7b5,Bb5b4][%mdl 32]} 6. Qc2 {[%emt 0:05:03] D24: Queen's Gambit Accepted: 3 Nf3 Nf6 4 Nc3.} (6. e5 $14 Nd5 7. Nxb5) 6... a6 $15 {[%emt 0:10:15]} 7. Bg5 {[%emt 0:12:36] [#]} h6 $146 {[%emt 0:08:17]} ({Predecessor:} 7... Nbd7 8. Be2 Bb7 9. Nd2 h6 10. Be3 c5 11. O-O cxd4 12. Bxd4 Bc5 13. Bxc5 Nxc5 {0-1 (34) Przybylski,W (2321)-Liyanage,R (2203) Chess.com INT 2021}) 8. Bxf6 {[%emt 0:00:12] Black is slightly better.} Qxf6 {[%emt 0:13:40]} 9. a4 {[%emt 0:09:17]} c5 {[%emt 0:00:30]} 10. d5 {[%emt 0:00:30]} b4 {[%emt 0:01:54]} 11. Nd1 {[%emt 0:00:24]} exd5 {[%emt 0:08:36] Threatens to win with ...Qe7.} 12. exd5 {[%emt 0:00:11]} Bf5 {[%emt 0:05:57]} 13. Qd2 {[%emt 0:02:35]} ({White should play} 13. Qxc4 $15 Nd7 14. Bd3) 13... Bd6 $1 $17 {[%emt 0:01:54][%cal Oc4c3]} 14. Bxc4 {[%emt 0:05:26]} O-O $1 {[%emt 0:00:20]} 15. O-O {[%emt 0:00:45]} Be4 {[%emt 0:01:38] This bishop pair is nice.} 16. Be2 {[%emt 0:08:03]} Nd7 {[%emt 0:01:08]} 17. Ne3 $2 {[%emt 0:00:19]} (17. Re1 {was necessary.}) 17... Bxf3 $19 {[%emt 0:02:16]} 18. Bxf3 {[%emt 0:00:06]} Qf4 {[%emt 0:00:07][%csl Gd6][%cal Rf4h2]} 19. Rfc1 {[%emt 0:01:37]} Qxh2+ {[%emt 0:02:10]} 20. Kf1 {[%emt 0:00:04]} Rfe8 {[%emt 0:03:16]} 21. Ke2 {[%emt 0:05:01]} Re7 {[%emt 0:09:44]} 22. Rh1 {[%emt 0:00:55]} Qf4 {[%emt 0:01:00]} 23. Rac1 {[%emt 0:05:45]} (23. Kf1 {keeps fighting.}) 23... Rae8 {[%emt 0:02:43] And now ...Ne5 would win.} 24. Kf1 $2 {[%emt 0:02:05]} (24. Rh3) 24... Ne5 $2 {[%emt 0:03:36]} (24... Rxe3 $19 25. fxe3 Rxe3) 25. Rh3 $17 {[%emt 0:03:00]} c4 {[%emt 0:07:33]} 26. Be2 {[%emt 0:01:53] Prevents Nd3.} f5 {[%emt 0:07:29]} (26... Bc5 $19 27. Kg1 Rd8) 27. g3 {[%emt 0:11:44]} Qe4 {[%emt 0:02:16] aiming for ...f4. Black is much more active.} 28. Bxc4 {[%emt 0:06:23] This move loses the game for White.} (28. Rh5 $17) 28... f4 $1 $19 {[%emt 0:02:27]} 29. gxf4 {[%emt 0:03:38]} Qxf4 $40 {[%emt 0:00:05][%mdl 128] Hoping for ...Ng4. White is in trouble.} 30. Be2 {[%emt 0:01:29] Inhibits Ng4.} (30. Qe2 Rf7 31. Rc2) 30... Rf8 {[%emt 0:01:38][%csl Gf8][%cal Rf4f2,Be8f8,Bf8f3,Bf3f1][%mdl 32]} 31. Qe1 {[%emt 0:04:54]} Ref7 {[%emt 0:00:08]} 32. Nc4 {[%emt 0:03:31] [#]} (32. Rc6 $142 Nxc6 33. dxc6) 32... Qg5 {[%emt 0:01:34]} (32... Qd4 $142 $1 {[%cal Rf7f2]} 33. Ne3 (33. Kg1 Rxf2) 33... Qxb2) 33. f3 {[%emt 0:06:19]} (33. Ne3 $19) 33... Nxf3 {[%emt 0:00:33]} 34. Bxf3 {[%emt 0:00:10]} Rxf3+ {[%emt 0:00:14]} 35. Rxf3 {[%emt 0:00:03]} Rxf3+ {[%emt 0:00:05]} 36. Ke2 {[%emt 0:00:09] [#]} Qg2+ {[%emt 0:00:25]} (36... Rh3 $142 $1 37. Qg1 Qh5+ 38. Kd2 Bf4+ 39. Ke1 Rh1 40. Kf2 Bxc1 41. Qxh1 Qxh1 42. Nb6 Bxb2 43. Kg3 Qg1+ 44. Kf3 Qxb6 45. a5 Qd4 46. d6 Qd3+ 47. Kf2 Bd4+ 48. Kg2 Qe2+ 49. Kh3 Be5 50. Kh4 g5+ 51. Kh3 Qf3#) 37. Kd1 {[%emt 0:00:07]} Rf1 {[%emt 0:00:06] Weighted Error Value: White=0.67/Black=0.57} 0-1